[Event "NJSK 2024 AmBm"]
[Site "Groningen, Netherlands"]
[Date "2024.05.03"]
[Round "7.7"]
[White "Woldhuis, Thera"]
[Black "Yildirim, Azra"]
[Result "1-0"]
[TimeControl "90min/40moves + 30min + 30sec/move"]
[WhiteElo "1662"]
[BlackElo "1597"]

1. e4 {[%clk 01:30:59]} {[%emt 00:00:15]} e5 {[%clk 01:30:56]} 2. Nf3 {[%clk
01:31:25]} Nc6 {[%clk 01:30:59]} 3. Bc4 {[%clk 01:31:49]} Nf6 {[%clk 01:30:36]}
4. Ng5 {[%clk 01:32:13]} d5 {[%clk 01:30:07]} 5. exd5 {[%clk 01:32:35]} Na5
{[%clk 01:29:19]} 6. Bb5+ {[%clk 01:32:58]} Bd7 {[%clk 01:28:04]} 7. Qe2 {[%clk
01:33:03]} Bd6 {[%clk 01:24:51]} 8. d4 {[%clk 01:33:07]} Bxb5 {[%clk 01:21:52]}
9. Qxb5+ {[%clk 01:33:22]} c6 {[%clk 01:22:14]} 10. dxc6 {[%clk 01:32:40]} bxc6
{[%clk 01:21:35]} 11. Qa4 {[%clk 01:32:54]} O-O {[%clk 01:14:34]} 12. O-O
{[%clk 01:32:46]} exd4 {[%clk 01:14:42]} 13. Bd2 {[%clk 01:32:54]} Bc7 {[%clk
01:07:07]} 14. c3 {[%clk 01:31:57]} Qd5 {[%clk 00:59:16]} 15. cxd4 {[%clk
01:31:39]} Nc4 {[%clk 00:58:38]} 16. Bc1 {[%clk 01:31:07]} Nxb2 {[%clk
00:34:18]} 17. Qc2 {[%clk 01:29:51]} Nc4 {[%clk 00:32:44]} 18. Nc3 {[%clk
01:29:36]} Qxd4 {[%clk 00:30:18]} 19. Rd1 {[%clk 01:29:24]} Rfe8 {[%clk
00:26:10]} 20. g3 {[%clk 01:28:29]} Qg4 {[%clk 00:21:17]} 21. Kg2 {[%clk
01:25:12]} h6 {[%clk 00:19:27]} 22. Nf3 {[%clk 01:25:32]} Ne5 {[%clk 00:18:38]}
23. Nxe5 {[%clk 01:24:36]} Bxe5 {[%clk 00:18:56]} 24. Bb2 {[%clk 01:24:03]} Qc4
{[%clk 00:17:19]} 25. Rac1 {[%clk 01:23:03]} Rad8 {[%clk 00:14:56]} 26. Re1
{[%clk 01:21:30]} Ng4 {[%clk 00:11:45]} 27. Re4 {[%clk 01:20:58]} Qe6 {[%clk
00:10:47]} 28. f4 {[%clk 01:20:08]} Qf5 {[%clk 00:07:33]} 29. fxe5 {[%clk
01:19:24]} Rxe5 {[%clk 00:06:53]} 30. Rxe5 {[%clk 01:19:22]} Qxe5 {[%clk
00:07:00]} 31. Nd1 {[%clk 01:19:03]} Qd5+ {[%clk 00:05:25]} 32. Kg1 {[%clk
01:19:13]} Qf3 {[%clk 00:05:02]} 33. Bc3 {[%clk 01:14:09]} Kf8 {[%clk
00:02:47]} 34. Bb4+ {[%clk 01:14:05]} Kg8 {[%clk 00:03:37]} 35. Bc5 {[%clk
01:14:15]} a6 {[%clk 00:03:01]} 36. Rb1 {[%clk 01:14:11]} g6 {[%clk 00:02:29]}
37. Nf2 {[%clk 01:13:31]} Ne5 {[%clk 00:02:23]} 38. Rb3 {[%clk 01:13:00]} Qd5
{[%clk 00:02:13]} 39. Ne4 {[%clk 01:11:22]} Qe6 {[%clk 00:01:34]} 40. Nd6
{[%clk 01:09:28]} Qg4 {[%clk 00:01:24]} 41. Qf2 {[%clk 01:07:20]} Qg5 {[%clk
00:00:48]} 42. Re3 {[%clk 01:06:25]} {[%emt 00:00:57]} Rd7 {[%clk 00:00:34]}
{[%emt 00:00:44]} 43. Ne4 {[%clk 01:05:02]} {[%emt 00:01:53]} Qh5 {[%clk
00:26:59]} {[%emt 00:04:22]} 44. Nf6+ {[%clk 01:35:23]} {[%emt 00:00:09]} 1-0

[Event "NJSK 2024 AmBm"]
[Site "Groningen, Netherlands"]
[Date "2024.05.03"]
[Round "7.8"]
[White "Hagen, Carlijn"]
[Black "Van Apeldoorn, Vera"]
[Result "1/2-1/2"]
[TimeControl "90min/40moves + 30min + 30sec/move"]
[WhiteElo "1705"]
[BlackElo "1601"]

1. e4 {[%clk 01:30:58]} {[%emt 00:00:19]} e5 {[%clk 01:30:50]} 2. f4 {[%clk
01:31:23]} d5 {[%clk 01:30:38]} 3. exd5 {[%clk 01:31:46]} exf4 {[%clk
01:30:47]} 4. Nf3 {[%clk 01:31:44]} Nf6 {[%clk 01:30:41]} 5. c4 {[%clk
01:31:26]} c6 {[%clk 01:29:39]} 6. dxc6 {[%clk 01:30:51]} Nxc6 {[%clk
01:29:40]} 7. d4 {[%clk 01:30:40]} Bg4 {[%clk 01:28:48]} 8. d5 {[%clk
01:19:34]} Ne5 {[%clk 01:25:25]} 9. Qe2 {[%clk 01:19:31]} Bd6 {[%clk 01:15:12]}
10. c5 {[%clk 01:07:51]} Qa5+ {[%clk 00:59:44]} 11. Nc3 {[%clk 01:05:30]} Qxc5
{[%clk 00:57:37]} 12. Bxf4 {[%clk 01:04:25]} Bxf3 {[%clk 00:55:08]} 13. Qb5+
{[%clk 01:02:07]} Qxb5 {[%clk 00:53:53]} 14. Bxb5+ {[%clk 01:02:31]} Nfd7
{[%clk 00:49:38]} 15. Bxd7+ {[%clk 01:01:27]} Kxd7 {[%clk 00:49:45]} 16. Bxe5
{[%clk 01:01:35]} Bxe5 {[%clk 00:50:07]} 17. gxf3 {[%clk 01:02:00]} Rhe8 {[%clk
00:47:36]} 18. Kd2 {[%clk 01:00:43]} Bf4+ {[%clk 00:40:44]} 19. Kc2 {[%clk
00:59:03]} Rac8 {[%clk 00:39:06]} 20. Rae1 {[%clk 00:55:28]} Rxe1 {[%clk
00:37:11]} 21. Rxe1 {[%clk 00:55:55]} Re8 {[%clk 00:32:23]} 22. Rxe8 {[%clk
00:51:43]} Kxe8 {[%clk 00:32:49]} 23. h3 {[%clk 00:52:08]} g5 {[%clk 00:29:04]}
24. Kd3 {[%clk 00:50:55]} f5 {[%clk 00:25:15]} 25. Nb5 {[%clk 00:48:30]} Be5
{[%clk 00:22:38]} 26. Nd4 {[%clk 00:43:22]} Bxd4 {[%clk 00:18:07]} 27. Kxd4
{[%clk 00:41:46]} h5 {[%clk 00:17:26]} 28. Ke5 {[%clk 00:41:39]} g4 {[%clk
00:17:08]} 29. fxg4 {[%clk 00:42:04]} hxg4 {[%clk 00:16:34]} 30. hxg4 {[%clk
00:42:18]} fxg4 {[%clk 00:16:43]} 31. Kf4 {[%clk 00:42:43]} Kd7 {[%clk
00:15:48]} 32. Kxg4 {[%clk 00:42:45]} Kd6 {[%clk 00:16:01]} 33. Kf4 {[%clk
00:43:10]} Kxd5 {[%clk 00:16:18]} 34. Ke3 {[%clk 00:43:36]} Kc4 {[%clk
00:14:51]} {[%emt 00:01:24]} 35. Kd2 {[%clk 00:43:58]} {[%emt 00:00:08]} a5
{[%clk 00:12:29]} {[%emt 00:02:53]} 36. Kc2 {[%clk 00:43:38]} {[%emt 00:00:49]}
b5 {[%clk 00:08:34]} {[%emt 00:04:25]} 37. b3+ {[%clk 00:42:36]} {[%emt
00:01:32]} 1/2-1/2

[ePGN "0.1;DGT LiveChess/2.2.6"]

[Event "NJSK 2024 Cm"]
[Site "Groningen, Netherlands"]
[Date "2024.04.27"]
[Round "1.1"]
[White "Barbier, Emma"]
[Black "Roebers, Bregje"]
[Result "0-1"]
[TimeControl "90min/40moves + 30min + 30sec/move"]
[WhiteElo "1473"]
[BlackElo "1829"]

1. e4 {[%clk 01:30:58]} d6 {[%clk 01:30:51]} {[%emt 00:00:09]} 2. Nf3 {[%clk
01:31:21]} {[%emt 00:00:07]} Nf6 {[%clk 01:31:02]} {[%emt 00:00:19]} 3. Nc3
{[%clk 01:31:39]} {[%emt 00:00:12]} g6 {[%clk 01:31:03]} {[%emt 00:00:29]} 4.
d3 {[%clk 01:31:12]} {[%emt 00:00:56]} Bg7 {[%clk 01:30:45]} {[%emt 00:00:48]}
5. Be2 {[%clk 01:31:21]} {[%emt 00:00:21]} O-O {[%clk 01:30:13]} {[%emt
00:01:03]} 6. O-O {[%clk 01:30:44]} {[%emt 00:01:07]} Nc6 {[%clk 01:28:38]}
{[%emt 00:02:05]} 7. Be3 {[%clk 01:29:32]} {[%emt 00:01:42]} h6 {[%clk
01:21:24]} {[%emt 00:07:44]} 8. h3 {[%clk 01:28:22]} {[%emt 00:01:39]} Nd7
{[%clk 01:18:12]} {[%emt 00:03:43]} 9. Qd2 {[%clk 01:26:38]} {[%emt 00:02:13]}
Kh7 {[%clk 01:17:41]} {[%emt 00:01:02]} 10. Rad1 {[%clk 01:18:50]} {[%emt
00:08:19]} f5 {[%clk 01:10:08]} {[%emt 00:08:03]} 11. Rfe1 {[%clk 01:17:05]}
{[%emt 00:02:14]} e5 {[%clk 01:08:36]} {[%emt 00:02:02]} 12. a3 {[%clk
01:16:54]} {[%emt 00:00:42]} f4 {[%clk 01:07:34]} {[%emt 00:01:31]} 13. Bxf4
{[%clk 01:16:30]} {[%emt 00:00:53]} exf4 {[%clk 01:07:53]} {[%emt 00:00:12]} 14.
b4 {[%clk 01:14:49]} {[%emt 00:02:11]} Nde5 {[%clk 01:06:28]} {[%emt 00:01:55]}
15. d4 {[%clk 01:13:43]} {[%emt 00:01:35]} Nxf3+ {[%clk 01:06:07]} {[%emt
00:00:51]} 16. Bxf3 {[%clk 01:13:45]} {[%emt 00:00:29]} Nxd4 {[%clk 01:05:50]}
{[%emt 00:00:47]} 17. Qd3 {[%clk 01:13:19]} {[%emt 00:00:56]} Be5 {[%clk
00:58:29]} {[%emt 00:07:51]} 18. Qc4 {[%clk 01:11:25]} {[%emt 00:02:24]} Nxf3+
{[%clk 00:56:58]} {[%emt 00:02:00]} 19. gxf3 {[%clk 01:11:53]} {[%emt
00:00:03]} Bxh3 {[%clk 00:55:47]} {[%emt 00:01:41]} 20. Kh1 {[%clk 01:11:33]}
{[%emt 00:00:50]} Qg5 {[%clk 00:49:38]} {[%emt 00:06:40]} 21. Rg1 {[%clk
01:11:23]} {[%emt 00:00:39]} Qh5 {[%clk 00:49:30]} {[%emt 00:00:38]} 22. Rg2
{[%clk 01:10:54]} {[%emt 00:00:58]} Be6+ {[%clk 00:49:37]} {[%emt 00:00:24]} 23.
Rh2 {[%clk 01:11:00]} {[%emt 00:00:24]} Qxf3+ {[%clk 00:49:57]} {[%emt
00:00:10]} 24. Rg2 {[%clk 01:11:18]} {[%emt 00:00:12]} Bxc4 {[%clk 00:50:18]}
{[%emt 00:00:09]} 0-1

[Event "NJSK 2024 Cm"]
[Site "Groningen, Netherlands"]
[Date "2024.04.27"]
[Round "1.2"]
[White "Jorritsma, Eli Alia"]
[Black "Vermeulen, Ilona"]
[Result "1-0"]
[TimeControl "90min/40moves + 30min + 30sec/move"]
[WhiteElo "1777"]
[BlackElo "1427"]

1. d4 {[%clk 01:30:56]} {[%emt 00:00:03]} d5 {[%clk 01:30:53]} {[%emt
00:00:08]} 2. Nf3 {[%clk 01:31:14]} {[%emt 00:00:12]} e6 {[%clk 01:30:56]}
{[%emt 00:00:26]} 3. g3 {[%clk 01:31:26]} {[%emt 00:00:18]} c5 {[%clk
01:30:15]} {[%emt 00:01:11]} 4. Bg2 {[%clk 01:29:51]} {[%emt 00:02:05]} Nc6
{[%clk 01:28:54]} {[%emt 00:01:52]} 5. O-O {[%clk 01:28:37]} {[%emt 00:01:44]}
Nf6 {[%clk 01:27:51]} {[%emt 00:01:33]} 6. c4 {[%clk 01:23:00]} {[%emt
00:06:07]} dxc4 {[%clk 01:24:50]} {[%emt 00:03:31]} 7. dxc5 {[%clk 01:22:52]}
{[%emt 00:00:37]} Qxd1 {[%clk 01:24:21]} {[%emt 00:00:59]} 8. Rxd1 {[%clk
01:23:16]} {[%emt 00:00:06]} Bxc5 {[%clk 01:23:44]} {[%emt 00:01:08]} 9. Nbd2
{[%clk 01:19:54]} {[%emt 00:03:51]} b5 {[%clk 01:18:27]} {[%emt 00:05:48]} 10.
Ne5 {[%clk 01:19:03]} {[%emt 00:01:20]} Bd7 {[%clk 01:15:05]} {[%emt 00:03:52]}
11. Nxc6 {[%clk 01:18:46]} {[%emt 00:00:47]} Rc8 {[%clk 01:14:29]} {[%emt
00:01:07]} 12. Ne5 {[%clk 01:18:02]} {[%emt 00:01:13]} Bd6 {[%clk 01:13:19]}
{[%emt 00:01:40]} 13. Nxd7 {[%clk 01:17:31]} {[%emt 00:01:00]} Kxd7 {[%clk
01:12:56]} {[%emt 00:00:54]} 14. Ne4 {[%clk 01:16:48]} {[%emt 00:01:12]} Nxe4
{[%clk 01:13:08]} {[%emt 00:00:19]} 15. Bxe4 {[%clk 01:17:10]} {[%emt
00:00:07]} Ke7 {[%clk 01:12:17]} {[%emt 00:01:21]} 16. Be3 {[%clk 01:15:55]}
{[%emt 00:01:45]} Bc5 {[%clk 01:11:05]} {[%emt 00:01:43]} 17. Bxc5+ {[%clk
01:15:16]} {[%emt 00:01:09]} Rxc5 {[%clk 01:10:46]} {[%emt 00:00:49]} 18. Rd2
{[%clk 01:14:38]} {[%emt 00:01:08]} f5 {[%clk 01:09:27]} {[%emt 00:01:49]} 19.
Bg2 {[%clk 01:14:13]} {[%emt 00:00:54]} Rd8 {[%clk 01:09:08]} {[%emt 00:00:50]}
20. Rxd8 {[%emt 00:00:52]} Kxd8 {[%clk 01:09:33]} 21. Rd1+ {[%clk 01:14:06]}
{[%emt 00:00:21]} Ke7 {[%clk 01:09:11]} {[%emt 00:00:52]} 22. f4 {[%clk
01:13:13]} {[%emt 00:01:22]} c3 {[%clk 01:06:31]} {[%emt 00:03:10]} 23. bxc3
{[%clk 01:12:10]} {[%emt 00:01:33]} Rxc3 {[%clk 01:05:52]} {[%emt 00:01:09]} 24.
Rd2 {[%clk 01:11:04]} {[%emt 00:01:36]} Kf6 {[%clk 01:03:29]} {[%emt 00:02:53]}
25. Kf2 {[%clk 01:09:44]} {[%emt 00:01:50]} a5 {[%clk 01:00:21]} {[%emt
00:03:39]} 26. Rd6 {[%clk 01:08:20]} {[%emt 00:01:53]} Ke7 {[%clk 00:59:32]}
{[%emt 00:01:20]} 27. Ra6 {[%clk 01:07:46]} {[%emt 00:01:03]} Ra3 {[%clk
00:58:39]} {[%emt 00:01:24]} 28. Bc6 {[%clk 01:06:42]} {[%emt 00:01:33]} b4
{[%clk 00:57:21]} {[%emt 00:01:48]} 29. Bb5 {[%clk 01:05:46]} {[%emt 00:01:26]}
Rxa2 {[%clk 00:56:46]} {[%emt 00:01:05]} 30. Bc4 {[%clk 01:05:28]} {[%emt
00:00:48]} Ra3 {[%clk 00:55:56]} {[%emt 00:01:20]} 31. Bxe6 {[%clk 01:04:29]}
{[%emt 00:01:29]} g6 {[%clk 00:51:43]} {[%emt 00:04:43]} 32. Bc4 {[%clk
01:01:05]} {[%emt 00:03:54]} b3 {[%clk 00:50:30]} {[%emt 00:01:44]} 33. Rb6
{[%clk 00:58:34]} {[%emt 00:02:59]} Ra4 {[%clk 00:47:25]} {[%emt 00:03:36]} 34.
Bxb3 {[%clk 00:57:21]} {[%emt 00:01:43]} Rb4 {[%clk 00:47:46]} {[%emt
00:00:09]} 35. Rxb4 {[%clk 00:57:44]} {[%emt 00:00:06]} axb4 {[%clk 00:48:12]}
{[%emt 00:00:05]} 36. Ke3 {[%clk 00:58:03]} {[%emt 00:00:11]} Kf6 {[%clk
00:46:57]} {[%emt 00:01:45]} 37. Kd4 {[%clk 00:57:55]} {[%emt 00:00:38]} h5
{[%clk 00:46:08]} {[%emt 00:01:19]} 38. Kc5 {[%clk 00:58:13]} {[%emt 00:00:12]}
g5 {[%clk 00:46:07]} {[%emt 00:00:31]} 39. e3 {[%clk 00:58:24]} {[%emt
00:00:19]} g4 {[%clk 00:45:01]} {[%emt 00:01:36]} 40. Kxb4 {[%clk 00:58:42]}
{[%emt 00:00:13]} Kg6 {[%clk 00:43:29]} {[%emt 00:02:02]} 41. Kc5 {[%clk
00:58:39]} {[%emt 00:00:32]} Kg7 {[%clk 00:43:16]} {[%emt 00:00:43]} 42. Kd6
{[%clk 00:58:58]} {[%emt 00:00:11]} Kf6 {[%clk 00:43:31]} {[%emt 00:00:15]} 43.
Kd5 {[%clk 00:59:13]} {[%emt 00:00:14]} Kf7 {[%clk 00:43:20]} {[%emt 00:00:41]}
44. Ke5+ {[%clk 00:59:31]} {[%emt 00:00:12]} Kg6 {[%clk 00:43:21]} {[%emt
00:00:30]} 45. Bc2 {[%clk 00:59:52]} {[%emt 00:00:08]} h4 {[%clk 00:43:23]}
{[%emt 00:00:28]} 46. Bxf5+ {[%clk 00:59:58]} {[%emt 00:00:24]} Kh5 {[%clk
00:43:47]} {[%emt 00:00:06]} 47. Kf6 {[%clk 01:00:04]} {[%emt 00:00:24]} Kh6
{[%clk 00:43:01]} {[%emt 00:01:16]} 48. e4 {[%clk 01:00:24]} {[%emt 00:00:10]}
h3 {[%clk 00:43:01]} {[%emt 00:00:31]} 49. e5 {[%clk 01:00:43]} {[%emt
00:00:10]} Kh5 {[%clk 00:43:06]} {[%emt 00:00:25]} 50. e6 {[%clk 01:01:07]}
{[%emt 00:00:06]} Kh6 {[%clk 00:43:35]} {[%emt 00:00:01]} 51. e7 {[%clk
01:01:32]} {[%emt 00:00:06]} Kh5 {[%clk 00:43:54]} {[%emt 00:00:11]} 52. e8=R
{[%emt 00:00:09]} Kh6 {[%clk 00:44:22]} {[%emt 00:00:02]} 53. Rh8 {[%clk
01:01:46]} {[%emt 00:00:05]} 1-0

[Event "NJSK 2024 Cm"]
[Site "Groningen, Netherlands"]
[Date "2024.04.27"]
[Round "1.3"]
[White "Esvelt, Klio"]
[Black "Luong, Thao"]
[Result "0-1"]
[TimeControl "90min/40moves + 30min + 30sec/move"]
[WhiteElo "1353"]
[BlackElo "1687"]

1. e4 {[%clk 01:30:59]} e5 {[%clk 01:30:54]} {[%emt 00:00:05]} 2. Nf3 {[%clk
01:31:27]} {[%emt 00:00:03]} Nc6 {[%clk 01:31:19]} {[%emt 00:00:06]} 3. d4
{[%clk 01:31:54]} {[%emt 00:00:02]} exd4 {[%clk 01:31:36]} {[%emt 00:00:14]} 4.
Nxd4 {[%clk 01:32:19]} {[%emt 00:00:05]} Bc5 {[%clk 01:31:28]} {[%emt
00:00:37]} 5. Be3 {[%clk 01:32:19]} {[%emt 00:00:29]} Bb6 {[%clk 01:31:02]}
{[%emt 00:00:57]} 6. Bc4 {[%clk 01:31:37]} {[%emt 00:01:12]} Nge7 {[%clk
01:30:40]} {[%emt 00:00:52]} 7. Nc3 {[%clk 01:31:03]} {[%emt 00:01:03]} O-O
{[%clk 01:30:20]} {[%emt 00:00:50]} 8. Qd2 {[%clk 01:30:54]} {[%emt 00:00:39]}
d6 {[%clk 01:29:32]} {[%emt 00:01:19]} 9. O-O-O {[%clk 01:30:46]} {[%emt
00:00:38]} Nxd4 {[%clk 01:28:33]} {[%emt 00:01:29]} 10. Bxd4 {[%clk 01:30:24]}
{[%emt 00:00:50]} Be6 {[%clk 01:25:38]} {[%emt 00:03:27]} 11. Bxe6 {[%clk
01:27:35]} {[%emt 00:03:20]} fxe6 {[%clk 01:25:42]} {[%emt 00:00:25]} 12. Rhe1
{[%clk 01:26:23]} {[%emt 00:01:13]} e5 {[%clk 01:24:23]} {[%emt 00:02:18]} 13.
Be3 {[%clk 01:25:22]} {[%emt 00:01:30]} Qd7 {[%clk 01:09:20]} {[%emt 00:15:32]}
14. Kb1 {[%clk 01:21:56]} {[%emt 00:03:58]} Rad8 {[%clk 01:05:22]} {[%emt
00:04:27]} 15. g3 {[%clk 01:20:58]} {[%emt 00:01:28]} Kh8 {[%clk 00:58:59]}
{[%emt 00:06:53]} 16. h4 {[%clk 01:20:45]} {[%emt 00:00:43]} c5 {[%clk
00:53:44]} {[%emt 00:05:46]} 17. Nd5 {[%clk 01:20:31]} {[%emt 00:00:44]} Nxd5
{[%clk 00:52:23]} {[%emt 00:01:50]} 18. exd5 {[%clk 01:20:38]} {[%emt
00:00:24]} h6 {[%clk 00:48:41]} {[%emt 00:04:12]} 19. f4 {[%clk 01:19:17]}
{[%emt 00:01:49]} Rde8 {[%clk 00:40:34]} {[%emt 00:08:38]} 20. fxe5 {[%clk
01:17:50]} {[%emt 00:01:58]} Rxe5 {[%clk 00:39:05]} {[%emt 00:01:59]} 21. Bf4
{[%clk 01:17:18]} {[%emt 00:01:02]} Rh5 {[%clk 00:35:37]} {[%emt 00:03:54]} 22.
Re6 {[%clk 01:15:22]} {[%emt 00:02:30]} Bc7 {[%clk 00:33:21]} {[%emt 00:02:45]}
23. Rde1 {[%clk 01:14:38]} {[%emt 00:01:01]} Rhf5 {[%clk 00:25:09]} {[%emt
00:08:56]} 24. Re7 {[%clk 01:13:48]} {[%emt 00:01:19]} Qc8 {[%clk 00:23:45]}
{[%emt 00:01:54]} 25. Bxh6 {[%clk 01:13:47]} {[%emt 00:00:32]} R5f7 {[%clk
00:21:02]} {[%emt 00:03:11]} 26. a3 {[%clk 01:13:33]} {[%emt 00:00:46]} Qf5
{[%clk 00:15:45]} {[%emt 00:05:44]} 27. Bf4 {[%clk 01:12:27]} {[%emt 00:01:36]}
Bd8 {[%clk 00:13:12]} {[%emt 00:03:05]} 28. Rxf7 {[%clk 01:12:09]} {[%emt
00:00:49]} Rxf7 {[%clk 00:12:41]} {[%emt 00:01:00]} 29. Bxd6 {[%clk 01:12:31]}
{[%emt 00:00:08]} Rd7 {[%clk 00:11:53]} {[%emt 00:01:18]} 30. Bxc5 {[%clk
01:12:04]} {[%emt 00:00:56]} Rxd5 {[%clk 00:11:22]} {[%emt 00:01:02]} 31. Bd4
{[%clk 01:12:30]} {[%emt 00:00:05]} Bf6 {[%clk 00:10:07]} {[%emt 00:01:45]} 32.
Re8+ {[%clk 01:11:28]} {[%emt 00:01:31]} Kh7 {[%clk 00:10:21]} {[%emt
00:00:17]} 33. Rf8 {[%clk 01:11:51]} {[%emt 00:00:06]} Qe4 {[%clk 00:08:30]}
{[%emt 00:02:20]} 34. Rf7 {[%clk 01:03:08]} {[%emt 00:09:16]} Rxd4 {[%clk
00:08:02]} {[%emt 00:00:57]} 35. Qa5 {[%clk 01:02:47]} {[%emt 00:00:40]} Rd1+
{[%clk 00:08:12]} {[%emt 00:00:30]} 36. Ka2 {[%clk 01:02:35]} {[%emt 00:00:40]}
Qc4+ {[%clk 00:08:34]} {[%emt 00:00:08]} 37. b3 {[%clk 01:02:38]} {[%emt
00:00:30]} Qxc2# {[%emt 00:00:23]} 0-1

[Event "NJSK 2024 Cm"]
[Site "Groningen, Netherlands"]
[Date "2024.04.27"]
[Round "1.4"]
[White "Hardeman, Imara"]
[Black "Zhang, Jinchen"]
[Result "1/2-1/2"]
[TimeControl "90min/40moves + 30min + 30sec/move"]
[WhiteElo "1676"]
[BlackElo "1348"]

1. e4 {[%clk 01:30:58]} {[%emt 00:00:01]} c5 {[%clk 01:30:50]} {[%emt
00:00:10]} 2. c3 {[%clk 01:31:23]} {[%emt 00:00:05]} g6 {[%clk 01:31:05]}
{[%emt 00:00:15]} 3. d4 {[%clk 01:31:41]} {[%emt 00:00:12]} cxd4 {[%clk
01:31:25]} {[%emt 00:00:10]} 4. cxd4 {[%clk 01:32:06]} {[%emt 00:00:06]} Bg7
{[%clk 01:31:33]} {[%emt 00:00:22]} 5. Nc3 {[%clk 01:32:08]} {[%emt 00:00:27]}
e6 {[%clk 01:31:19]} {[%emt 00:00:44]} 6. Nf3 {[%clk 01:31:42]} {[%emt
00:00:56]} Ne7 {[%clk 01:31:29]} {[%emt 00:00:19]} 7. Be3 {[%clk 01:27:48]}
{[%emt 00:04:25]} d6 {[%clk 01:30:04]} {[%emt 00:01:55]} 8. Bb5+ {[%clk
01:27:23]} {[%emt 00:00:55]} Bd7 {[%clk 01:29:57]} {[%emt 00:00:36]} 9. Bxd7+
{[%clk 01:27:18]} {[%emt 00:00:36]} Qxd7 {[%clk 01:29:35]} {[%emt 00:00:52]} 10.
O-O {[%clk 01:27:22]} {[%emt 00:00:26]} O-O {[%clk 01:29:12]} {[%emt 00:00:52]}
11. Rc1 {[%clk 01:27:26]} {[%emt 00:00:28]} Nbc6 {[%clk 01:28:41]} {[%emt
00:01:00]} 12. Qe2 {[%clk 01:23:32]} {[%emt 00:04:24]} b6 {[%clk 01:26:17]}
{[%emt 00:02:53]} 13. Rfd1 {[%clk 01:20:26]} {[%emt 00:03:36]} d5 {[%clk
01:23:47]} {[%emt 00:03:01]} 14. e5 {[%clk 01:18:27]} {[%emt 00:02:29]} Rfb8
{[%clk 01:20:35]} {[%emt 00:03:42]} 15. Nb5 {[%clk 01:16:41]} {[%emt 00:02:17]}
a6 {[%clk 01:18:09]} {[%emt 00:02:56]} 16. Nd6 {[%clk 01:15:29]} {[%emt
00:01:42]} Nc8 {[%clk 01:17:29]} {[%emt 00:01:09]} 17. Nxc8 {[%clk 01:14:26]}
{[%emt 00:01:34]} Rxc8 {[%clk 01:17:01]} {[%emt 00:00:57]} 18. Qd2 {[%clk
01:10:34]} {[%emt 00:04:22]} Qd8 {[%clk 01:14:52]} {[%emt 00:02:38]} 19. Rc2
{[%clk 01:07:33]} {[%emt 00:03:33]} Rc7 {[%clk 01:12:19]} {[%emt 00:03:02]} 20.
Rdc1 {[%clk 01:07:38]} {[%emt 00:00:24]} Rac8 {[%clk 01:11:52]} {[%emt
00:00:58]} 21. Rc3 {[%clk 01:01:02]} {[%emt 00:07:07]} Qe8 {[%clk 01:09:03]}
{[%emt 00:03:18]} 22. R1c2 {[%clk 00:50:00]} {[%emt 00:11:32]} Qd7 {[%clk
01:02:07]} {[%emt 00:07:25]} 23. a3 {[%clk 00:47:53]} {[%emt 00:02:38]} Ne7
{[%clk 00:59:09]} {[%emt 00:03:27]} 24. Qc1 {[%clk 00:45:53]} {[%emt 00:02:31]}
Rxc3 {[%clk 00:59:20]} {[%emt 00:00:19]} 25. Rxc3 {[%clk 00:45:48]} {[%emt
00:00:35]} Rxc3 {[%clk 00:59:07]} {[%emt 00:00:43]} 26. Qxc3 {[%clk 00:45:59]}
{[%emt 00:00:19]} Qc6 {[%clk 00:56:56]} {[%emt 00:02:40]} 27. Qb3 {[%clk
00:38:42]} {[%emt 00:07:47]} b5 {[%clk 00:53:35]} {[%emt 00:03:51]} 28. h3
{[%clk 00:36:00]} {[%emt 00:03:12]} Qc4 {[%clk 00:52:15]} {[%emt 00:01:51]} 29.
Qd1 {[%clk 00:32:07]} {[%emt 00:04:23]} Qc8 {[%clk 00:49:19]} {[%emt 00:03:25]}
30. Bd2 {[%clk 00:29:06]} {[%emt 00:03:31]} Qc7 {[%clk 00:46:26]} {[%emt
00:03:23]} 31. Bb4 {[%clk 00:27:50]} {[%emt 00:01:47]} Nc6 {[%clk 00:43:05]}
{[%emt 00:03:52]} 32. Bc5 {[%clk 00:26:30]} {[%emt 00:01:50]} Nd8 {[%clk
00:39:15]} {[%emt 00:04:20]} 33. Nd2 {[%clk 00:22:07]} {[%emt 00:04:52]} a5
{[%clk 00:38:58]} {[%emt 00:00:47]} 34. Nf3 {[%clk 00:19:10]} {[%emt 00:03:27]}
Nb7 {[%clk 00:35:49]} {[%emt 00:03:38]} 35. b4 {[%clk 00:17:48]} {[%emt
00:01:51]} a4 {[%clk 00:35:47]} {[%emt 00:00:34]} 36. Kf1 {[%emt 00:03:27]}
1/2-1/2